bitfinex/quotes_BTCUSD_20230403
["timestamp","ask_amount","ask_price","bid_price","bid_amount"]
[1680510809926,0.1488,28437.0,28432.0,0.00018]
[1680510810147,0.1488,28437.0,28432.0,0.37255997]
[1680510810148,0.14197487,28436.0,28432.0,0.37255997]
[1680510810368,0.14197487,28436.0,28432.0,0.37273997]
[1680510810588,0.00018,28441.0,28433.0,0.72567497]
[1680510810853,0.1488,28443.0,28438.0,0.5879814]
[1680510811069,0.1488,28443.0,28439.0,0.08328493]
[1680510811306,0.1488,28443.0,28440.0,0.028]
[1680510811521,0.1488,28443.0,28438.0,0.017581]
[1680510811745,0.1488,28443.0,28438.0,0.017582]
[1680510811965,0.1488,28443.0,28438.0,0.017581]
[1680510812216,0.1488,28443.0,28440.0,0.013]
[1680510812440,0.1488,28443.0,28440.0,0.01758]
[1680510812662,0.1488,28443.0,28438.0,0.2434614]
[1680510812887,0.1488,28441.0,28437.0,0.00018]
[1680510813108,0.64574984,28441.0,28440.0,0.013]
[1680510813345,0.1487334,28441.0,28440.0,0.01294]
[1680510814011,0.00012,28444.0,28440.0,0.03052]
[1680510814234,6e-05,28448.0,28443.0,0.2172814]
[1680510814457,0.3302,28451.0,28444.0,0.08328193]
[1680510814458,0.00018,28451.0,28444.0,0.08328193]
[1680510814722,0.1488,28450.0,28444.0,0.08328193]
[1680510814941,0.14898,28450.0,28444.0,0.08328193]
[1680510815168,0.14898,28450.0,28445.0,0.35497497]
[1680510815169,0.00018,28450.0,28445.0,0.35497497]
[1680510815396,0.14898,28452.0,28446.0,0.6555363]
[1680510815616,0.1488,28452.0,28447.0,0.06570393]
[1680510815836,0.14898,28452.0,28448.0,0.017575]
[1680510816065,0.14898,28452.0,28445.0,0.00018]
[1680510816066,0.1487,28448.0,28445.0,0.00018]
[1680510816285,0.3707,28445.0,28438.0,0.00018]
[1680510816499,0.3707,28445.0,28437.0,0.2172814]
[1680510816500,0.32429,28442.0,28440.0,0.2172814]
[1680510816720,0.14197487,28441.0,28440.0,0.00018]
[1680510816945,0.14197487,28441.0,28438.0,0.00018]
[1680510817173,0.0085,28440.0,28438.0,0.00018]
[1680510817629,0.1488,28439.0,28437.0,0.2174614]
[1680510817844,0.0085,28438.0,28437.0,0.2174614]
[1680510818062,0.32629487,28438.0,28437.0,0.2174614]
[1680510818276,0.0085,28438.0,28437.0,0.2174614]
[1680510818529,0.53929497,28438.0,28437.0,0.2434614]
[1680510818742,0.18432,28438.0,28437.0,0.2174614]
[1680510818991,0.18432,28438.0,28437.0,0.2434614]
[1680510819218,0.18432,28438.0,28437.0,0.24402468]
[1680510819445,0.90999497,28438.0,28437.0,0.02674328]
[1680510819677,0.3707,28436.0,28431.0,0.00018]
[1680510819914,0.3707,28436.0,28428.0,0.00018]
[1680510819915,0.32468,28432.0,28428.0,0.00018]
[1680510820133,0.471,28437.0,28431.0,0.017586]
[1680510820357,0.471,28437.0,28432.0,0.2172814]
[1680510820358,0.0085,28436.0,28432.0,0.2172814]
[1680510820598,0.0085,28436.0,28432.0,0.2174614]
[1680510820833,0.44398,28437.0,28432.0,0.2350464]
[1680510821060,0.1518,28437.0,28432.0,0.00018]
[1680510821273,0.17581,28439.0,28432.0,0.017585]
[1680510821505,0.003,28436.0,28432.0,0.026765]
[1680510821732,0.01909,28440.0,28433.0,0.2172814]
[1680510821733,0.1488,28434.0,28433.0,0.2172814]
[1680510821955,0.1488,28434.0,28433.0,0.2350464]
[1680510823555,0.1508,28434.0,28433.0,0.2440464]
[1680510823834,0.1508,28434.0,28433.0,0.59960307]
[1680510823835,0.002,28434.0,28433.0,0.59960307]
[1680510824058,0.002,28434.0,28433.0,0.2446281]
[1680510824740,0.002,28434.0,28433.0,0.97030307]
[1680510824972,0.002,28434.0,28433.0,0.59960307]
[1680510825194,0.002,28434.0,28433.0,0.2446281]
[1680510825895,0.35,28418.0,28413.0,0.17597]
[1680510826155,0.4827186,28427.0,28395.0,0.15]
[1680510826156,0.4827186,28396.0,28395.0,0.15]
[1680510826385,0.4827186,28396.0,28394.0,6e-05]
[1680510826386,0.4608186,28396.0,28394.0,6e-05]
[1680510826628,0.4608186,28396.0,28393.0,0.00012]
[1680510826629,0.0085,28395.0,28393.0,6e-05]
[1680510826866,0.383026,28394.0,28388.0,3.67449333]
[1680510827106,0.6096186,28389.0,28388.0,3.66583233]
[1680510827596,0.811953,28389.0,28388.0,3.66583233]
[1680510827856,1.17719463,28389.0,28388.0,3.66601233]
[1680510828082,1.05237341,28389.0,28388.0,3.66601233]
[1680510828322,0.62662131,28389.0,28388.0,3.66601233]
[1680510828556,0.62668131,28389.0,28388.0,3.66595233]
[1680510828810,0.62680131,28389.0,28388.0,3.66583233]
[1680510829037,1.08743991,28389.0,28388.0,3.66601233]
[1680510829270,1.08843991,28389.0,28388.0,3.66601233]
[1680510829514,1.38743991,28389.0,28388.0,3.66601233]
[1680510829736,0.64980131,28389.0,28388.0,3.66583233]
[1680510829966,1.78761991,28389.0,28388.0,3.66329233]
[1680510830213,2.11061991,28389.0,28388.0,3.66329233]
[1680510830463,2.08761991,28389.0,28388.0,3.66329233]
[1680510830683,2.11461991,28389.0,28388.0,3.66329233]
[1680510831862,1.16854748,28389.0,28388.0,3.66347233]
[1680510832089,1.01974748,28389.0,28388.0,3.66347233]
[1680510832287,0.72706,28389.0,28388.0,3.55563913]
[1680510832568,1.019748,28389.0,28388.0,3.55563913]
[1680510832793,0.319748,28389.0,28388.0,3.55563913]
[1680510833020,0.292748,28389.0,28388.0,3.55563913]
[1680510833247,0.292748,28389.0,28388.0,3.55863913]
[1680510833248,0.294748,28389.0,28388.0,3.55863913]
[1680510833722,0.303248,28389.0,28388.0,3.55863913]
[1680510833980,0.315576,28389.0,28388.0,3.55863913]
[1680510834457,0.67055097,28389.0,28388.0,3.55863913]
[1680510834695,0.67055097,28389.0,28388.0,3.83877606]
[1680510834696,0.292928,28389.0,28388.0,3.83877606]
[1680510834933,0.1706256,28389.0,28388.0,3.9136141]
[1680510835168,0.4609986,28394.0,28388.0,3.9106141]
[1680510835403,0.024,28389.0,28388.0,3.57325213]
[1680510835594,0.168626,28393.0,28389.0,0.2]
[1680510835850,0.4608186,28394.0,28390.0,0.017611]
[1680510836084,0.00018,28396.0,28394.0,0.2]
[1680510836312,0.012325,28398.0,28394.0,0.2]
[1680510836780,0.168626,28397.0,28394.0,0.26588393]
[1680510837003,0.168626,28397.0,28394.0,0.20018]
[1680510837225,0.168626,28396.0,28394.0,0.20018]
[1680510837417,0.168626,28396.0,28394.0,0.57276297]
[1680510837665,0.168626,28395.0,28394.0,0.588488]
[1680510837913,0.4609986,28400.0,28394.0,0.588488]
[1680510837914,0.00018,28400.0,28398.0,0.2]
[1680510838152,0.4608186,28401.0,28398.0,0.26570393]
[1680510838394,0.6294446,28399.0,28398.0,0.00018]
[1680510838616,0.6294446,28399.0,28391.0,0.1]
[1680510838617,0.4608186,28395.0,28394.0,0.018]
[1680510838871,0.4608186,28395.0,28391.0,0.20018]
[1680510838872,0.4608186,28395.0,28393.0,0.017609]
[1680510839143,0.4608186,28395.0,28392.0,0.00018]
[1680510839144,0.6294446,28395.0,28392.0,0.00018]
[1680510839360,0.16820217,28394.0,28392.0,0.00012]
[1680510839576,0.16820217,28394.0,28391.0,0.20018]
[1680510839828,0.16820217,28394.0,28392.0,0.01761]
[1680510840057,0.16820217,28394.0,28391.0,0.20018]
[1680510840058,0.31017704,28394.0,28391.0,0.20018]
[1680510840275,0.31017704,28394.0,28391.0,0.57276597]
[1680510840276,0.16820217,28394.0,28391.0,0.57276597]
[1680510840501,0.16820217,28393.0,28391.0,0.57276597]
[1680510840956,0.00018,28395.0,28392.0,0.35597497]
[1680510841184,0.4608186,28398.0,28394.0,0.2]
[1680510841185,0.4609986,28398.0,28394.0,0.2]
[1680510841399,0.4609986,28398.0,28395.0,0.4735039]
[1680510841864,0.168203,28397.0,28395.0,0.40779997]
[1680510842095,0.168383,28397.0,28395.0,0.40779997]
[1680510842318,0.168383,28397.0,28395.0,0.41579997]
[1680510842569,0.00118,28398.0,28397.0,0.2]
[1680510842805,0.4608186,28406.0,28399.0,0.2]
[1680510843049,0.4608186,28406.0,28402.0,0.2]
[1680510843292,0.168203,28405.0,28403.0,0.06570393]
[1680510843798,0.168203,28405.0,28402.0,0.00018]
[1680510844013,0.168203,28405.0,28402.0,0.007]
[1680510844014,0.6368586,28403.0,28402.0,0.007]
[1680510844252,0.6368586,28403.0,28398.0,0.00018]
[1680510844481,0.77099647,28403.0,28398.0,0.017786]
[1680510844707,0.168203,28402.0,28398.0,6e-05]
[1680510844931,0.4608186,28401.0,28398.0,0.017606]
[1680510845151,0.4608186,28399.0,28398.0,0.035213]
[1680510845422,0.4693186,28399.0,28398.0,0.017606]
[1680510845642,0.6375216,28399.0,28397.0,0.52448]
[1680510845904,0.0085,28398.0,28397.0,0.52448]
[1680510846129,0.176703,28398.0,28397.0,0.52448]
[1680510846351,0.17627911,28398.0,28397.0,0.5243]
[1680510846573,0.54697911,28398.0,28397.0,0.02]
[1680510847009,0.54697911,28398.0,28393.0,0.00018]
[1680510847239,0.78007258,28398.0,28397.0,0.02]
[1680510847462,0.46889471,28398.0,28393.0,0.017789]
[1680510847697,0.79207258,28398.0,28397.0,0.002]
[1680510847926,0.6368986,28398.0,28393.0,0.017609]
[1680510848169,0.94707647,28398.0,28393.0,0.00018]
[1680510848393,0.6498986,28398.0,28397.0,0.002]
[1680510848619,0.8445186,28398.0,28397.0,0.002]
[1680510848843,1.21181757,28398.0,28397.0,0.002]
[1680510849071,0.4608186,28395.0,28394.0,0.00051056]
[1680510849354,0.4693186,28395.0,28394.0,0.00051056]
[1680510849579,1.36319657,28395.0,28394.0,0.00051056]
[1680510849829,1.36319657,28395.0,28391.0,0.00018]
[1680510850062,0.17611,28392.0,28391.0,0.00018]
[1680510850278,0.18461,28392.0,28391.0,0.00018]
[1680510850502,0.352813,28392.0,28391.0,0.00018]
[1680510850735,0.7245226,28392.0,28391.0,0.00018]
[1680510850982,0.723523,28392.0,28391.0,0.007]
[1680510851215,1.07849797,28392.0,28391.0,0.007]
[1680510852084,1.07807408,28392.0,28389.0,0.01775899]
[1680510852299,1.08207408,28392.0,28389.0,0.21775899]
[1680510852520,0.168203,28391.0,28389.0,0.21775899]
[1680510852743,0.168203,28391.0,28389.0,0.28820799]
[1680510852963,0.168203,28391.0,28389.0,0.35391192]
[1680510853232,0.168203,28391.0,28389.0,0.29520799]
[1680510853455,0.001,28392.0,28389.0,0.21775899]
[1680510853456,0.344323,28390.0,28389.0,0.21775899]
[1680510853688,0.168383,28390.0,28389.0,0.04963223]
[1680510853932,0.168203,28390.0,28389.0,0.024612]
[1680510854147,0.168203,28390.0,28388.0,2.55545913]
[1680510854148,1.79044031,28390.0,28388.0,2.55545913]
[1680510854366,1.88544871,28389.0,28388.0,2.55545913]
[1680510854595,2.22997171,28389.0,28388.0,2.55545913]
[1680510854815,2.23847171,28389.0,28388.0,2.55545913]
[1680510855727,2.06233171,28389.0,28388.0,2.55545913]
[1680510856174,2.78800668,28389.0,28388.0,2.55545913]
[1680510856392,2.78900668,28389.0,28388.0,2.55545913]
[1680510856609,2.78800668,28389.0,28388.0,2.56245913]
[1680510856828,2.06333171,28389.0,28388.0,2.56245913]
[1680510857061,2.78800668,28389.0,28388.0,2.55545913]
[1680510857279,2.79900668,28389.0,28388.0,2.55645913]
[1680510857499,2.78800668,28389.0,28388.0,2.55545913]
[1680510857732,2.82499168,28389.0,28388.0,2.55545913]
[1680510857952,3.33003305,28389.0,28388.0,2.55545913]
[1680510858173,3.32499168,28389.0,28388.0,2.55545913]
[1680510858636,3.32438779,28389.0,28388.0,2.55563913]
[1680510858860,3.32438779,28389.0,28388.0,2.55663913]
[1680510859051,3.60291079,28389.0,28388.0,2.55075913]
[1680510859323,3.37573079,28389.0,28388.0,2.54993913]
[1680510859555,3.40273079,28389.0,28388.0,2.55093913]
[1680510859976,4.09359728,28389.0,28388.0,2.54993913]
[1680510860191,4.12059728,28389.0,28388.0,2.55093913]
[1680510860430,2.75322782,28389.0,28388.0,2.54993913]
[1680510860666,2.75322782,28389.0,28388.0,2.54861]
[1680510860667,2.05340782,28389.0,28388.0,2.54861]
[1680510860930,2.05322782,28389.0,28388.0,2.54879]
[1680510861168,2.77890279,28389.0,28388.0,2.54879]
[1680510861402,2.80590279,28389.0,28388.0,2.54979]
[1680510861641,3.09123079,28389.0,28388.0,2.54879]
[1680510861860,3.11841079,28389.0,28388.0,2.54961]
[1680510862081,3.14477728,28389.0,28388.0,2.54961]
[1680510862302,3.13244928,28389.0,28388.0,2.54961]
[1680510862542,3.10544928,28389.0,28388.0,2.54861]
[1680510862763,3.31458279,28389.0,28388.0,2.54391]
[1680510862981,3.33244928,28389.0,28388.0,2.54391]
[1680510863217,3.13244928,28389.0,28388.0,2.54391]
[1680510863461,3.15156779,28389.0,28388.0,2.54391]
[1680510863673,3.12691079,28389.0,28388.0,2.54391]
[1680510863905,0.21786649,28393.0,28388.0,2.54391]
[1680510863906,0.61776248,28394.0,28388.0,3.4059209]
[1680510864130,0.61776248,28394.0,28393.0,0.72567497]
[1680510864131,0.00012,28394.0,28393.0,0.72567497]
[1680510864349,0.19085144,28401.0,28393.0,1.0907449]
[1680510864594,0.19085144,28401.0,28398.0,0.04305612]
[1680510864853,0.18844786,28401.0,28399.0,0.08330993]
[1680510865099,0.0242,28407.0,28399.0,0.08330993]
[1680510865100,0.00018,28406.0,28402.0,0.04305612]
[1680510865320,0.0242,28407.0,28403.0,0.18892793]
[1680510865544,0.0242,28407.0,28403.0,0.18910793]
[1680510866497,0.0242,28407.0,28403.0,0.123404]
[1680510866927,0.0242,28407.0,28404.0,0.35497497]
[1680510867139,0.0242,28407.0,28405.0,0.052807]
[1680510867381,0.0242,28407.0,28405.0,0.052987]
[1680510868045,0.64196248,28407.0,28405.0,0.052987]
[1680510868478,0.64196248,28407.0,28405.0,0.070987]
[1680510868764,0.64196248,28407.0,28405.0,0.052987]
[1680510868988,0.64196248,28407.0,28405.0,0.00018]
[1680510869213,0.64196248,28407.0,28404.0,0.00018]
[1680510869214,1.03417497,28406.0,28404.0,0.00018]
[1680510869442,1.16451248,28405.0,28404.0,0.00018]
[1680510869665,0.61776248,28400.0,28399.0,6e-05]
[1680510869890,0.62644248,28400.0,28399.0,0.017606]
[1680510870579,0.62644248,28400.0,28399.0,0.028606]
[1680510871046,0.17605,28405.0,28402.0,0.04305612]
[1680510871280,0.02438,28407.0,28402.0,0.69045612]
[1680510871505,0.02438,28407.0,28403.0,0.123225]
[1680510871506,0.64196248,28407.0,28403.0,0.123225]
[1680510871730,0.64196248,28407.0,28403.0,0.123405]
[1680510871953,0.0242,28407.0,28403.0,0.123405]
[1680510872184,0.17602,28405.0,28403.0,0.05299]
[1680510872419,0.20021,28407.0,28403.0,0.017603]
[1680510872691,0.61776248,28406.0,28403.0,0.017603]
[1680510873115,0.0085,28405.0,28403.0,0.035603]
[1680510873333,0.0085,28405.0,28403.0,0.017603]
[1680510873552,0.0085,28405.0,28403.0,0.022603]
[1680510874007,0.0085,28405.0,28397.0,0.176073]
[1680510874008,0.00862,28405.0,28397.0,0.176073]
[1680510874238,0.14197487,28404.0,28403.0,0.022603]
[1680510874467,0.91041497,28404.0,28403.0,0.005]
[1680510874708,0.91023497,28404.0,28403.0,0.005]
[1680510875163,1.31041497,28404.0,28395.0,0.017608]
[1680510875455,0.8369086,28396.0,28391.0,0.035221]
[1680510875679,0.15047487,28395.0,28392.0,0.01761]
[1680510875903,0.15047487,28395.0,28391.0,0.01761]
[1680510876128,0.6608186,28393.0,28390.0,0.017611]
[1680510876360,0.17612,28391.0,28388.0,2.54309]
[1680510876587,0.17612,28391.0,28388.0,2.560522]
[1680510876588,0.81129347,28390.0,28388.0,2.560522]
[1680510876816,0.81147347,28390.0,28388.0,2.560522]
[1680510876985,0.6694986,28390.0,28388.0,2.560522]
[1680510877412,0.6694986,28390.0,28389.0,0.00042389]
[1680510878424,1.39517357,28390.0,28389.0,0.00042389]
[1680510878636,1.39517357,28390.0,28389.0,0.00242389]
[1680510879515,1.53714844,28390.0,28389.0,0.00242389]
[1680510879732,1.53714844,28390.0,28388.0,0.66015]
[1680510879733,0.5707,28389.0,28388.0,0.66015]
[1680510879946,0.5707,28389.0,28388.0,0.65775]
[1680510879947,1.51331484,28389.0,28388.0,0.65775]
[1680510880160,1.37133997,28389.0,28388.0,0.65775]
[1680510880641,1.37133997,28389.0,28388.0,0.65793]
[1680510880642,1.5227699,28389.0,28388.0,0.65793]
[1680510880858,1.5229499,28389.0,28388.0,0.65775]
[1680510881073,1.4982929,28389.0,28388.0,0.65775]
[1680510881296,0.3707,28387.0,28386.0,0.00274216]
[1680510881525,1.48432257,28387.0,28386.0,0.00274216]
[1680510881800,1.78432257,28387.0,28386.0,0.00274216]
[1680510882228,1.81132257,28387.0,28386.0,0.00374216]
[1680510882449,1.78432257,28387.0,28386.0,0.00274216]
[1680510882664,1.81132257,28387.0,28386.0,0.00374216]
[1680510882913,1.49899357,28387.0,28386.0,0.00374216]
[1680510883110,1.51132257,28387.0,28386.0,0.00374216]
[1680510883323,1.49049357,28387.0,28386.0,0.00374216]
[1680510883541,1.21349357,28387.0,28386.0,0.00374216]
[1680510883979,1.18649357,28387.0,28386.0,0.00274216]
[1680510884208,1.80272257,28387.0,28386.0,0.00374216]
[1680510884437,1.97572257,28387.0,28386.0,0.00274216]
[1680510884654,2.02058906,28387.0,28386.0,0.00374216]
[1680510884879,1.99358906,28387.0,28386.0,0.00274216]
[1680510885088,2.02908906,28387.0,28386.0,0.00374216]
[1680510885314,2.00208906,28387.0,28386.0,0.00274216]
[1680510885562,2.00208906,28387.0,28386.0,0.00374216]
[1680510885563,2.02908906,28387.0,28386.0,0.00374216]
[1680510885780,2.02908906,28387.0,28386.0,0.00274216]
[1680510885781,1.98422257,28387.0,28386.0,0.00274216]
[1680510886864,2.11122257,28387.0,28386.0,0.00374216]
[1680510887079,2.07572257,28387.0,28386.0,0.00274216]
[1680510887297,2.03646601,28387.0,28386.0,0.00374216]
[1680510887511,2.00946601,28387.0,28386.0,0.00274216]
[1680510887732,2.03646601,28387.0,28386.0,0.00374216]
[1680510888226,2.03646601,28387.0,28386.0,0.00274216]
[1680510888227,2.00946601,28387.0,28386.0,0.00274216]
[1680510888442,2.04496601,28387.0,28386.0,0.00374216]
[1680510889096,1.93646601,28387.0,28386.0,0.00374216]
[1680510889555,1.90946601,28387.0,28386.0,0.00274216]
[1680510889764,1.93646601,28387.0,28386.0,0.00374216]
[1680510889982,1.92413701,28387.0,28386.0,0.00374216]
[1680510890220,1.54190397,28387.0,28386.0,0.00374216]
[1680510890457,2.13646601,28387.0,28386.0,0.00374216]
[1680510890929,1.54190397,28387.0,28386.0,0.00374216]
[1680510891143,2.13646601,28387.0,28386.0,0.00374216]
[1680510891570,2.14496601,28387.0,28386.0,0.00374216]
[1680510892465,2.24496601,28387.0,28386.0,0.00374216]
[1680510892685,1.45040397,28387.0,28386.0,0.00374216]
[1680510892903,2.04496601,28387.0,28386.0,0.00374216]
[1680510895354,0.3707,28385.0,28384.0,0.028158]
[1680510895579,1.23887497,28385.0,28384.0,0.028158]
[1680510895856,1.30188497,28385.0,28384.0,0.028158]
[1680510896180,1.33887497,28385.0,28384.0,0.028158]
[1680510896407,1.33887497,28385.0,28380.0,0.022]
[1680510896408,0.96526204,28381.0,28380.0,0.00425]
[1680510896712,1.93323301,28381.0,28380.0,0.00425]
[1680510897237,1.96023301,28381.0,28380.0,0.00425]
[1680510897446,1.9107795,28381.0,28380.0,0.00425]
[1680510898106,1.8837795,28381.0,28380.0,0.00425]
[1680510898332,1.62891701,28381.0,28380.0,0.00425]
[1680510898555,1.64124901,28381.0,28380.0,0.00425]
[1680510898995,1.66824901,28381.0,28380.0,0.00425]
[1680510899199,1.64124901,28381.0,28380.0,0.00425]
[1680510899426,1.66806901,28381.0,28380.0,0.00425]
[1680510899643,1.64106901,28381.0,28380.0,0.00425]
[1680510899880,1.65573701,28381.0,28380.0,0.00425]
[1680510900100,1.64106901,28381.0,28380.0,0.00425]
[1680510900549,0.59456204,28381.0,28380.0,0.06995393]
[1680510900773,0.00012,28381.0,28377.0,0.11628771]
[1680510900999,0.59456204,28383.0,28380.0,0.017618]
[1680510901267,0.17633,28385.0,28380.0,0.0181194]
[1680510901493,0.025,28381.0,28380.0,0.0181194]
[1680510901922,0.61518789,28383.0,28380.0,0.0181194]
[1680510902142,0.61518789,28383.0,28380.0,0.0201194]
[1680510902377,0.17617,28381.0,28380.0,0.0201184]
[1680510902626,0.17617,28381.0,28380.0,0.0182984]
[1680510902887,0.00018,28384.0,28383.0,0.04563071]
[1680510903109,0.61518789,28390.0,28383.0,0.123312]
[1680510903110,0.61518789,28387.0,28383.0,0.123312]
[1680510903334,0.00887019,28391.0,28383.0,0.16894271]
[1680510903335,0.00018,28388.0,28383.0,0.16894271]
[1680510903558,0.61536789,28390.0,28383.0,0.16894271]
[1680510903799,0.61536789,28390.0,28383.0,0.52391768]
[1680510904020,0.61536789,28390.0,28383.0,0.70007868]
[1680510904447,0.61536789,28390.0,28383.0,0.70207868]
[1680510904668,0.75734276,28390.0,28383.0,0.70007868]
[1680510905114,0.75734276,28390.0,28383.0,0.70207868]
[1680510905778,0.17613,28388.0,28383.0,0.10047871]
[1680510906003,0.31810487,28388.0,28383.0,0.06524671]
[1680510906677,0.0085,28387.0,28383.0,0.06324671]
[1680510906876,0.15047487,28387.0,28383.0,0.017616]
[1680510907099,0.15047487,28387.0,28383.0,0.019616]
[1680510907323,0.0085,28387.0,28383.0,0.017616]
[1680510907573,0.62368789,28387.0,28383.0,0.019616]
[1680510908239,0.62368789,28387.0,28383.0,0.017616]
[1680510908474,0.62868789,28387.0,28383.0,0.017616]
[1680510908715,0.72567497,28386.0,28383.0,0.017616]
[1680510908951,0.0085,28385.0,28383.0,0.017616]
[1680510910074,0.0135,28385.0,28384.0,0.00048319]
[1680510910309,0.0135,28385.0,28384.0,0.01809819]
[1680510910755,0.18464,28385.0,28384.0,0.00048319]
[1680510910960,0.92231497,28385.0,28384.0,0.00048319]
[1680510911193,1.22231497,28385.0,28384.0,0.00048319]
[1680510911475,1.22231497,28385.0,28376.0,0.00018]
[1680510911476,0.61518789,28380.0,28376.0,0.00018]
[1680510911698,0.17619,28378.0,28376.0,0.0178]
[1680510911910,0.0085,28377.0,28376.0,0.01762]
[1680510912340,0.00018,28382.0,28376.0,0.37259497]
[1680510912582,0.31813487,28382.0,28377.0,0.00052017]
[1680510912802,0.0085,28383.0,28378.0,0.06324871]
[1680510912803,0.003,28380.0,28378.0,0.06324871]
[1680510913017,0.0085,28383.0,28378.0,0.06324871]
[1680510913235,0.003,28382.0,28381.0,0.04563071]
[1680510913457,0.17617,28382.0,28381.0,0.06324771]
[1680510913670,0.18467,28382.0,28381.0,0.06324771]
[1680510914335,0.18567,28382.0,28381.0,0.003]
[1680510914555,0.0095,28382.0,28381.0,0.003]
[1680510914775,0.17717,28382.0,28381.0,0.003]
[1680510915223,0.17717,28382.0,28381.0,0.020617]
[1680510915224,0.0095,28382.0,28381.0,0.020617]
[1680510915439,0.0095,28382.0,28381.0,0.003]
[1680510915654,0.001,28382.0,28381.0,0.003]
[1680510916091,0.001,28382.0,28381.0,0.020617]
[1680510916306,0.0085,28383.0,28381.0,0.017617]
[1680510916547,0.0085,28383.0,28381.0,0.019617]
[1680510917223,0.0085,28383.0,28380.0,0.017617]
[1680510917433,0.0085,28383.0,28381.0,0.002]
[1680510917645,0.0085,28383.0,28378.0,0.04563071]
[1680510917884,0.52117487,28383.0,28379.0,0.017618]
[1680510918099,0.00862,28383.0,28378.0,6e-05]
[1680510918319,0.0085,28383.0,28379.0,0.017618]
[1680510918530,0.0085,28383.0,28382.0,0.00050312]
[1680510918971,0.0085,28383.0,28382.0,0.01811912]
[1680510919187,0.0105,28383.0,28382.0,0.01811912]
[1680510919406,0.0085,28383.0,28382.0,0.017616]
[1680510919622,0.005,28383.0,28382.0,0.017616]
[1680510920072,0.0135,28383.0,28382.0,0.017616]
[1680510921236,0.73917497,28383.0,28379.0,0.00018]
[1680510921473,0.5469,28380.0,28375.0,0.00018]
[1680510921719,0.15047487,28379.0,28375.0,0.00018]
[1680510922172,0.15047487,28379.0,28374.0,0.017801]
[1680510922605,0.15047487,28379.0,28374.0,0.017621]
[1680510922828,0.0115,28379.0,28374.0,0.017621]
[1680510923030,0.0115,28379.0,28373.0,0.039801]
[1680510923031,0.76566276,28379.0,28373.0,0.039801]
[1680510923251,0.61518789,28376.0,28373.0,0.022]
[1680510923455,0.0085,28375.0,28373.0,0.039802]
[1680510923669,0.15047487,28375.0,28373.0,0.022]
[1680510923885,0.73417497,28375.0,28373.0,0.022]
[1680510925386,0.73717497,28375.0,28373.0,0.022]
[1680510926060,0.3,28374.0,28373.0,0.022]
[1680510926270,0.3085,28374.0,28373.0,0.022]
[1680510927118,0.005,28374.0,28373.0,0.039622]
[1680510927350,0.0135,28374.0,28373.0,0.02218]
[1680510927581,0.0135,28374.0,28373.0,0.039802]
[1680510928034,0.0135,28374.0,28373.0,0.02218]
[1680510928268,0.0085,28374.0,28373.0,0.039622]
[1680510928493,0.0335,28374.0,28373.0,0.039622]
[1680510928713,0.0085,28374.0,28373.0,0.022]
[1680510928928,0.0135,28374.0,28373.0,0.022]
[1680510929145,0.0085,28374.0,28373.0,0.022]
[1680510929575,0.3792,28375.0,28373.0,0.022]
[1680510929800,0.005,28374.0,28373.0,0.022]
[1680510930025,0.0135,28374.0,28373.0,0.022]
[1680510930247,0.0135,28374.0,28373.0,0.039622]
[1680510931131,0.0085,28374.0,28373.0,0.039622]
[1680510931351,0.018,28374.0,28373.0,0.039622]
[1680510931570,0.0265,28374.0,28373.0,0.022]
[1680510932980,0.0265,28374.0,28373.0,0.039622]
[1680510933437,0.0265,28374.0,28373.0,0.022]
[1680510933660,0.0265,28374.0,28373.0,0.039622]
[1680510933870,0.0265,28374.0,28373.0,0.022]
[1680510934538,1.52158852,28374.0,28373.0,0.022]
[1680510934741,1.52761365,28374.0,28373.0,0.022]
[1680510934964,1.36745865,28374.0,28373.0,0.145355]
[1680510935406,1.36745865,28374.0,28373.0,0.039622]
[1680510935628,1.34954286,28374.0,28373.0,0.022]
[1680510935853,1.34936286,28374.0,28373.0,0.022]
[1680510936293,1.64954286,28374.0,28373.0,0.022]
[1680510936760,1.79696286,28374.0,28373.0,0.00564652]
[1680510936977,1.82196286,28374.0,28373.0,0.00564652]
[1680510937212,1.79696286,28374.0,28373.0,0.00564652]
[1680510937449,1.82396286,28374.0,28373.0,0.00564652]
[1680510937663,1.79696286,28374.0,28373.0,0.00564652]
[1680510937900,2.02414286,28374.0,28373.0,0.00564652]
[1680510938121,1.83647786,28374.0,28373.0,0.00564652]
[1680510938341,2.05434435,28374.0,28373.0,0.00564652]
[1680510938570,1.9683165,28374.0,28373.0,0.00564652]
[1680510938832,0.52368789,28374.0,28373.0,0.00564652]
[1680510939047,0.52368789,28374.0,28373.0,0.02344852]
[1680510939048,0.55068789,28374.0,28373.0,0.02344852]
[1680510939262,0.20321,28374.0,28373.0,0.02344852]
[1680510939481,0.20321,28374.0,28373.0,0.02392256]
[1680510939696,0.20321,28374.0,28373.0,0.00630056]
[1680510939924,0.73800997,28374.0,28373.0,0.00630056]
[1680510940141,0.90290497,28374.0,28373.0,0.01230056]
[1680510940359,0.90190497,28374.0,28373.0,0.00630056]
[1680510940579,0.91390497,28374.0,28373.0,0.00712056]
[1680510940796,0.90190497,28374.0,28373.0,0.00612056]
[1680510941043,0.92090497,28374.0,28373.0,0.00712056]
[1680510941254,1.37137984,28374.0,28373.0,0.00712056]
[1680510941479,1.24173997,28374.0,28373.0,0.00712056]
[1680510941691,1.24173997,28374.0,28373.0,0.00664652]
[1680510941906,1.22273997,28374.0,28373.0,0.00564652]
[1680510942126,1.32273997,28374.0,28373.0,0.00564652]
[1680510942841,1.31040497,28374.0,28373.0,0.00564652]
[1680510943050,1.33740497,28374.0,28373.0,0.00564652]
[1680510944118,1.34973997,28374.0,28373.0,0.00564652]
[1680510944557,1.49823997,28374.0,28373.0,0.00564652]
[1680510944776,1.51610646,28374.0,28373.0,0.00564652]
[1680510945713,0.63356929,28372.0,28371.0,0.022]
[1680510945941,1.98481486,28372.0,28371.0,0.022]
[1680510946426,0.4707,28371.0,28368.0,0.02206]
[1680510946658,1.77368286,28369.0,28368.0,0.02206]
[1680510946880,1.88601986,28369.0,28368.0,0.02206]
[1680510947105,2.18601986,28369.0,28368.0,0.02206]
[1680510947867,2.18601986,28369.0,28360.0,0.022]
[1680510947868,0.2,28361.0,28360.0,0.01759]